{"text_format":"1","workbook":"xlsx","n_sheets":1,"sheets":["Planificador de presupuesto"],"not_rendered":{"charts":1,"images":0,"macros":0,"external_links":0,"defined_names":1,"comments":0,"pivot_tables":0},"unopened":[],"bounds":{"document_bytes":16777216,"sheet_cells":100000,"rows_first":2000,"rows_last":500,"rows_between":2000,"halvings":0,"cell_chars":16384,"cell_head_chars":4096},"cells_cut":0,"cells_raw":0,"read":"whole","date_system":"1900"}

{"sheet":"Planificador de presupuesto","index":0,"n_rows":21,"n_cols":6,"rows_kept":21,"cut":false,"hidden":false,"merged":[]}
[]
[]
[null,"Presupuesto por categoría"]
[null,"Categorías","Presupuesto planificado","Presupuesto en detalle","Disponible / (Supera)"]
[null,"Transporte",750,{"$f":"SUMIF(Tabla2[Categoría],Tabla1[[#This Row],[Categorías]],Tabla2[Importe])","v":720},{"$f":"IFERROR(Tabla1[[#This Row],[Presupuesto planificado]]-Tabla1[[#This Row],[Presupuesto en detalle]],\"\")","v":30}]
[null,"Alojamiento",250,{"$f":"SUMIF(Tabla2[Categoría],Tabla1[[#This Row],[Categorías]],Tabla2[Importe])","v":300},{"$f":"IFERROR(Tabla1[[#This Row],[Presupuesto planificado]]-Tabla1[[#This Row],[Presupuesto en detalle]],\"\")","v":-50}]
[null,"Comida",100,{"$f":"SUMIF(Tabla2[Categoría],Tabla1[[#This Row],[Categorías]],Tabla2[Importe])","v":80},{"$f":"IFERROR(Tabla1[[#This Row],[Presupuesto planificado]]-Tabla1[[#This Row],[Presupuesto en detalle]],\"\")","v":20}]
[null,"Actividades",500,{"$f":"SUMIF(Tabla2[Categoría],Tabla1[[#This Row],[Categorías]],Tabla2[Importe])","v":500},{"$f":"IFERROR(Tabla1[[#This Row],[Presupuesto planificado]]-Tabla1[[#This Row],[Presupuesto en detalle]],\"\")","v":0}]
[null,"Regalos",50,{"$f":"SUMIF(Tabla2[Categoría],Tabla1[[#This Row],[Categorías]],Tabla2[Importe])","v":0},{"$f":"IFERROR(Tabla1[[#This Row],[Presupuesto planificado]]-Tabla1[[#This Row],[Presupuesto en detalle]],\"\")","v":50}]
[null,"Otros",50,{"$f":"SUMIF(Tabla2[Categoría],Tabla1[[#This Row],[Categorías]],Tabla2[Importe])","v":0},{"$f":"IFERROR(Tabla1[[#This Row],[Presupuesto planificado]]-Tabla1[[#This Row],[Presupuesto en detalle]],\"\")","v":50}]
[null,"Fondo para contingencias",200,{"$f":"SUMIF(Tabla2[Categoría],Tabla1[[#This Row],[Categorías]],Tabla2[Importe])","v":0},{"$f":"IFERROR(Tabla1[[#This Row],[Presupuesto planificado]]-Tabla1[[#This Row],[Presupuesto en detalle]],\"\")","v":200}]
[null,"Presupuesto total",{"$f":"SUBTOTAL(109,Tabla1[Presupuesto planificado])","v":1900},{"$f":"SUBTOTAL(109,Tabla1[Presupuesto en detalle])","v":1600},{"$f":"SUBTOTAL(109,Tabla1[Disponible / (Supera)])","v":300}]
[]
[null,"Detalles de gastos"]
[null,"Descripción","Categoría","Cantidad","Precio unitario","Importe"]
[null,"Tarifa aérea","Transporte",2,300,{"$f":"IFERROR(Tabla2[[#This Row],[Cantidad]]*Tabla2[[#This Row],[Precio unitario]],\"\")","v":600}]
[null,"Autobús y taxi (2 días)","Transporte",4,30,{"$f":"IFERROR(Tabla2[[#This Row],[Cantidad]]*Tabla2[[#This Row],[Precio unitario]],\"\")","v":120}]
[null,"Hotel (2 noches)","Alojamiento",2,150,{"$f":"IFERROR(Tabla2[[#This Row],[Cantidad]]*Tabla2[[#This Row],[Precio unitario]],\"\")","v":300}]
[null,"Comida (2 días)","Comida",2,40,{"$f":"IFERROR(Tabla2[[#This Row],[Cantidad]]*Tabla2[[#This Row],[Precio unitario]],\"\")","v":80}]
[null,"Día 1, entradas para el concierto","Actividades",2,250,{"$f":"IFERROR(Tabla2[[#This Row],[Cantidad]]*Tabla2[[#This Row],[Precio unitario]],\"\")","v":500}]
[null,"Escribe otros elementos de gastos",null,null,null,{"$f":"IFERROR(Tabla2[[#This Row],[Cantidad]]*Tabla2[[#This Row],[Precio unitario]],\"\")","v":0}]